[Event "Vener-dì-Lampo"]
[Site "Chess.com"]
[Date "2020.05.01"]
[Round "4"]
[White "rob_fio"]
[Black "mr6701"]
[Result "0-1"]
[WhiteElo "1720"]
[BlackElo "1942"]
[TimeControl "300+2"]
[EndTime "12:12:45 PDT"]
[Termination "mr6701 ha vinto per abbandono"]

1. d4 {[%clk 0:05:01.5]} 1... d5 {[%clk 0:05:00.7]} 2. e3 {[%clk 0:05:02.7]}
2... e6 {[%clk 0:05:01.5]} 3. Bd3 {[%clk 0:05:04.2]} 3... Nf6 {[%clk 0:05:02.8]}
4. f4 {[%clk 0:05:05.8]} 4... Bd6 {[%clk 0:05:03.9]} 5. Nf3 {[%clk 0:05:07.4]}
5... O-O {[%clk 0:05:04.6]} 6. O-O {[%clk 0:05:08.8]} 6... c5 {[%clk 0:05:05.8]}
7. c3 {[%clk 0:05:10]} 7... Nc6 {[%clk 0:05:06.9]} 8. Nbd2 {[%clk 0:05:11.1]}
8... a6 {[%clk 0:05:05.8]} 9. Ne5 {[%clk 0:05:11.3]} 9... Qc7 {[%clk 0:05:05.3]}
10. Qf3 {[%clk 0:05:12.1]} 10... Ne7 {[%clk 0:04:59.5]} 11. g4 {[%clk
0:05:11.3]} 11... cxd4 {[%clk 0:04:54.9]} 12. cxd4 {[%clk 0:05:11.7]} 12... Bxe5
{[%clk 0:04:55.1]} 13. dxe5 {[%clk 0:05:11.1]} 13... Nd7 {[%clk 0:04:53.4]} 14.
g5 {[%clk 0:05:10.1]} 14... Nf5 {[%clk 0:04:44.7]} 15. Nb3 {[%clk 0:05:00.1]}
15... Nc5 {[%clk 0:04:31.3]} 16. Nxc5 {[%clk 0:04:57.9]} 16... Qxc5 {[%clk
0:04:32.1]} 17. Bxf5 {[%clk 0:04:58.9]} 17... exf5 {[%clk 0:04:33.2]} 18. Bd2
{[%clk 0:04:56.7]} 18... Be6 {[%clk 0:04:32.7]} 19. Rac1 {[%clk 0:04:56.9]}
19... Qb5 {[%clk 0:04:29.9]} 20. Rb1 {[%clk 0:04:46.6]} 20... d4 {[%clk
0:04:17.6]} 21. exd4 {[%clk 0:04:39.6]} 21... Bxa2 {[%clk 0:04:18.2]} 22. Rbc1
{[%clk 0:04:35.5]} 22... Qxb2 {[%clk 0:04:00.4]} 23. Bc3 {[%clk 0:04:34.4]}
23... Qb5 {[%clk 0:03:57.1]} 24. h4 {[%clk 0:04:32.6]} 24... Bd5 {[%clk
0:03:54.6]} 25. Qf2 {[%clk 0:04:23.5]} 25... Rac8 {[%clk 0:03:40.2]} 26. h5
{[%clk 0:04:19.2]} 26... Rc6 {[%clk 0:03:40]} 27. Rfe1 {[%clk 0:04:15.1]} 27...
Rfc8 {[%clk 0:03:38.4]} 28. Re3 {[%clk 0:04:15.6]} 28... Be4 {[%clk 0:03:23]}
29. Qd2 {[%clk 0:04:14.4]} 29... Qc4 {[%clk 0:03:10.5]} 30. Kf2 {[%clk
0:04:13.9]} 30... b5 {[%clk 0:03:01.6]} 31. g6 {[%clk 0:04:03.3]} 31... fxg6
{[%clk 0:02:58.1]} 32. hxg6 {[%clk 0:04:02.7]} 32... Rxg6 {[%clk 0:02:58.9]} 33.
Rg3 {[%clk 0:04:02]} 33... Rh6 {[%clk 0:02:37.5]} 34. Ke3 {[%clk 0:03:19.5]}
34... b4 {[%clk 0:02:24.1]} 35. Rcg1 {[%clk 0:03:04.9]} 35... g6 {[%clk
0:02:08]} 36. Bxb4 {[%clk 0:03:05.6]} 36... Qb3+ {[%clk 0:02:04.7]} 37. Kf2
{[%clk 0:02:52.9]} 37... Rc2 {[%clk 0:02:03.2]} 38. Rxb3 {[%clk 0:02:43.5]}
38... Rh2+ {[%clk 0:02:03.6]} 39. Kg3 {[%clk 0:02:18]} 39... Rhxd2 {[%clk
0:01:53]} 40. Bxd2 {[%clk 0:02:18.3]} 40... Rxd2 {[%clk 0:01:54.9]} 41. Rb4
{[%clk 0:02:11.4]} 41... a5 {[%clk 0:01:41.8]} 42. Ra4 {[%clk 0:02:08.2]} 42...
Bc6 {[%clk 0:01:32.1]} 43. Rxa5 {[%clk 0:02:07.9]} 43... Rxd4 {[%clk 0:01:32.9]}
44. Rc5 {[%clk 0:02:07]} 44... Rd3+ {[%clk 0:01:17.9]} 45. Kf2 {[%clk
0:02:00.9]} 45... Be4 {[%clk 0:01:05.8]} 46. e6 {[%clk 0:01:56.3]} 46... Kf8
{[%clk 0:01:03.5]} 47. Ra1 {[%clk 0:01:53.5]} 47... Ke7 {[%clk 0:01:02.8]} 48.
Ra6 {[%clk 0:01:49.5]} 48... Rd6 {[%clk 0:00:54.5]} 49. Rxd6 {[%clk 0:01:44.4]}
49... Kxd6 {[%clk 0:00:55.3]} 50. Re5 {[%clk 0:01:44.7]} 50... Ke7 {[%clk
0:00:52.3]} 51. Kg3 {[%clk 0:01:45]} 51... h6 {[%clk 0:00:41.7]} 52. Kh4 {[%clk
0:01:44.3]} 52... Bd3 {[%clk 0:00:38.6]} 53. Kg3 {[%clk 0:01:44.2]} 53... Bc4
{[%clk 0:00:39.5]} 54. Ra5 {[%clk 0:01:38.1]} 54... Bxe6 {[%clk 0:00:40.3]} 55.
Ra7+ {[%clk 0:01:40]} 55... Kf6 {[%clk 0:00:41.3]} 56. Ra6 {[%clk 0:01:40.2]}
56... g5 {[%clk 0:00:41.4]} 57. fxg5+ {[%clk 0:01:41.2]} 57... hxg5 {[%clk
0:00:43.3]} 58. Rb6 {[%clk 0:01:41.5]} 58... f4+ {[%clk 0:00:43.8]} 59. Kf2
{[%clk 0:01:42.7]} 59... Kf5 {[%clk 0:00:43.7]} 60. Rb5+ {[%clk 0:01:43.3]}
60... Kg4 {[%clk 0:00:44.6]} 61. Rb1 {[%clk 0:01:43.1]} 61... Bd5 {[%clk
0:00:42.8]} 62. Rg1+ {[%clk 0:01:43.5]} 62... Kf5 {[%clk 0:00:43.8]} 63. Rd1
{[%clk 0:01:43.8]} 63... Be4 {[%clk 0:00:43.8]} 64. Rc1 {[%clk 0:01:43.6]} 64...
Kg4 {[%clk 0:00:43.5]} 65. Rg1+ {[%clk 0:01:41.7]} 65... Kf5 {[%clk 0:00:42.1]}
66. Rc1 {[%clk 0:01:42]} 66... Ke5 {[%clk 0:00:43.2]} 67. Rc5+ {[%clk
0:01:43.1]} 67... Bd5 {[%clk 0:00:44.4]} 68. Rc1 {[%clk 0:01:43.4]} 68... g4
{[%clk 0:00:45.2]} 69. Re1+ {[%clk 0:01:44.8]} 69... Kf5 {[%clk 0:00:42.8]} 70.
Rd1 {[%clk 0:01:44.4]} 70... g3+ {[%clk 0:00:44]} 71. Kg1 {[%clk 0:01:44.5]}
71... Be4 {[%clk 0:00:44.2]} 72. Rd2 {[%clk 0:01:44.9]} 72... f3 {[%clk
0:00:45]} 73. Rb2 {[%clk 0:01:44.9]} 73... Kf4 {[%clk 0:00:45.1]} 74. Rd2 {[%clk
0:01:45.3]} 74... Ke3 {[%clk 0:00:43.3]} 75. Rb2 {[%clk 0:01:46.3]} 75... f2+
{[%clk 0:00:44.5]} 76. Rxf2 {[%clk 0:01:31.8]} 76... gxf2+ {[%clk 0:00:44.8]}
77. Kf1 {[%clk 0:01:33.2]} 77... Bd3+ {[%clk 0:00:45.5]} 78. Kg2 {[%clk
0:01:33.9]} 78... Ke2 {[%clk 0:00:46.6]} 79. Kg3 {[%clk 0:01:33.7]} 79... f1=Q
{[%clk 0:00:44.2]} 0-1